[Event "Titled Tuesday Blitz June 21 Late 2022"]
[White "Zhou, Qiyu"]
[Black "Yedidia, Daniel"]
[WhiteFideId "505161"]
[BlackFideId "30905907"]
[WhiteElo "1925"]
[BlackElo "2616"]
[Result "1-0"]
[Round "01"]
[TimeControl "180+1"]
[Date "2022.06.22"]
[WhiteClock "0:00:11"]
[BlackClock "0:01:04"]

1. e4 {[%clk 0:03:00]}  e5 {[%clk 0:02:59]} 2. Nf3 {[%clk 0:02:59]}  Nc6 {[%clk 0:02:59]} 3. Bb5 {[%clk 0:02:58]}  a6 {[%clk 0:02:59]} 4. Ba4 {[%clk 0:02:58]}  Nf6 {[%clk 0:03:00]} 5. O-O {[%clk 0:02:58]}  Be7 {[%clk 0:02:59]} 6. Re1 {[%clk 0:02:57]}  b5 {[%clk 0:02:59]} 7. Bb3 {[%clk 0:02:57]}  O-O {[%clk 0:03:00]} 8. h3 {[%clk 0:02:55]}  d6 {[%clk 0:02:58]} 9. c3 {[%clk 0:02:55]}  Nb8 {[%clk 0:02:58]} 10. d4 {[%clk 0:02:55]}  Nbd7 {[%clk 0:02:59]} 11. Nbd2 {[%clk 0:02:42]}  Bb7 {[%clk 0:02:58]} 12. Bc2 {[%clk 0:02:40]}  c5 {[%clk 0:02:58]} 13. d5 {[%clk 0:02:40]}  c4 {[%clk 0:02:58]} 14. Nf1 {[%clk 0:02:40]}  Qc7 {[%clk 0:02:55]} 15. Ng3 {[%clk 0:02:40]}  g6 {[%clk 0:02:55]} 16. Bh6 {[%clk 0:02:33]}  Rfb8 {[%clk 0:02:55]} 17. Qd2 {[%clk 0:02:33]}  a5 {[%clk 0:02:44]} 18. Nf5 {[%clk 0:02:14]}  Qd8 {[%clk 0:02:06]} 19. N3h4 {[%clk 0:01:51]}  Bf8 {[%clk 0:01:59]} 20. Bxf8 {[%clk 0:01:37]}  Qxf8 {[%clk 0:01:58]} 21. Qg5 {[%clk 0:01:27]}  Kh8 {[%clk 0:01:54]} 22. Nh6 {[%clk 0:01:13]}  Nh5 {[%clk 0:01:36]} 23. g3 {[%clk 0:00:55]}  f6 {[%clk 0:01:35]} 24. Qe3 {[%clk 0:00:52]}  Nf4 {[%clk 0:01:29]} 25. Ng4 {[%clk 0:00:31]}  Nxh3+ {[%clk 0:01:24]} 26. Kg2 {[%clk 0:00:31]}  Ng5 {[%clk 0:01:24]} 27. Nf3 {[%clk 0:00:31]}  Nxf3 {[%clk 0:01:23]} 28. Qxf3 {[%clk 0:00:31]}  Kg7 {[%clk 0:01:15]} 29. Rh1 {[%clk 0:00:29]}  h5 {[%clk 0:01:15]} 30. Ne3 {[%clk 0:00:28]}  Qf7 {[%clk 0:01:12]} 31. g4 {[%clk 0:00:23]}  hxg4 {[%clk 0:01:10]} 32. Qxg4 {[%clk 0:00:24]}  Rh8 {[%clk 0:01:10]} 33. Nf5+ {[%clk 0:00:21]}  Kg8 {[%clk 0:01:09]} 34. Rxh8+ {[%clk 0:00:16]}  Kxh8 {[%clk 0:01:07]} 35. Rh1+ {[%clk 0:00:16]}  Qh7 {[%clk 0:01:05]} 36. Rxh7+ {[%clk 0:00:15]}  Kxh7 {[%clk 0:01:06]} 37. Qh3+ {[%clk 0:00:12]}  Kg8 {[%clk 0:01:05]} 38. Ne7+ {[%clk 0:00:12]}  Kf7 {[%clk 0:01:04]} 39. Qxd7 {[%clk 0:00:11]} 1-0


[Site "https://www.chess.com"]

[Event "Titled Tuesday Blitz June 21 Late 2022"]
[White "Abarca Gonzalez, Nicolas"]
[Black "Florescu, Codrut-Constantin"]
[WhiteFideId "3409422"]
[BlackFideId "1202200"]
[WhiteElo "2504"]
[BlackElo "2191"]
[Result "1-0"]
[Round "02"]
[TimeControl "180+1"]
[Date "2022.06.22"]
[WhiteClock "0:01:05"]
[BlackClock "0:00:51"]

1. e4 {[%clk 0:03:00]}  c5 {[%clk 0:03:00]} 2. Nf3 {[%clk 0:03:00]}  e6 {[%clk 0:03:00]} 3. b3 {[%clk 0:03:00]}  a6 {[%clk 0:02:59]} 4. Bb2 {[%clk 0:03:00]}  Nc6 {[%clk 0:03:00]} 5. g3 {[%clk 0:03:00]}  d5 {[%clk 0:02:59]} 6. exd5 {[%clk 0:03:00]}  exd5 {[%clk 0:03:00]} 7. Bg2 {[%clk 0:03:00]}  Nf6 {[%clk 0:02:59]} 8. O-O {[%clk 0:02:59]}  Be7 {[%clk 0:02:59]} 9. d4 {[%clk 0:02:58]}  cxd4 {[%clk 0:02:59]} 10. Nxd4 {[%clk 0:02:58]}  O-O {[%clk 0:02:59]} 11. Nd2 {[%clk 0:02:57]}  Bg4 {[%clk 0:02:57]} 12. Nxc6 {[%clk 0:02:54]}  bxc6 {[%clk 0:02:57]} 13. Nf3 {[%clk 0:02:53]}  Ne4 {[%clk 0:02:53]} 14. h3 {[%clk 0:02:53]}  Bh5 {[%clk 0:02:52]} 15. g4 {[%clk 0:02:53]}  Bg6 {[%clk 0:02:52]} 16. Ne5 {[%clk 0:02:54]}  Qb6 {[%clk 0:02:45]} 17. Nd7 {[%clk 0:02:50]}  Qa7 {[%clk 0:02:40]} 18. Nxf8 {[%clk 0:02:49]}  Rxf8 {[%clk 0:02:41]} 19. c4 {[%clk 0:02:47]}  Bc5 {[%clk 0:02:39]} 20. Qe2 {[%clk 0:02:40]}  f5 {[%clk 0:02:36]} 21. cxd5 {[%clk 0:02:25]}  cxd5 {[%clk 0:02:37]} 22. Rac1 {[%clk 0:02:23]}  fxg4 {[%clk 0:02:29]} 23. Rxc5 {[%clk 0:02:16]}  Qxc5 {[%clk 0:02:26]} 24. hxg4 {[%clk 0:02:16]}  h6 {[%clk 0:02:16]} 25. Qe3 {[%clk 0:01:56]}  Qxe3 {[%clk 0:02:11]} 26. fxe3 {[%clk 0:01:57]}  Rc8 {[%clk 0:01:40]} 27. Rc1 {[%clk 0:01:51]}  Rxc1+ {[%clk 0:01:39]} 28. Bxc1 {[%clk 0:01:52]}  Nc3 {[%clk 0:01:39]} 29. Bd2 {[%clk 0:01:47]}  Ne4 {[%clk 0:01:39]} 30. Bb4 {[%clk 0:01:44]}  Be8 {[%clk 0:01:37]} 31. a4 {[%clk 0:01:41]}  Bc6 {[%clk 0:01:32]} 32. Bf1 {[%clk 0:01:37]}  Bb7 {[%clk 0:01:33]} 33. Be2 {[%clk 0:01:35]}  Kf7 {[%clk 0:01:32]} 34. Ba5 {[%clk 0:01:30]}  Ke6 {[%clk 0:01:30]} 35. Bb6 {[%clk 0:01:29]}  g6 {[%clk 0:01:29]} 36. Bd4 {[%clk 0:01:27]}  Nf6 {[%clk 0:01:29]} 37. b4 {[%clk 0:01:25]}  h5 {[%clk 0:01:28]} 38. gxh5 {[%clk 0:01:24]}  gxh5 {[%clk 0:01:26]} 39. a5 {[%clk 0:01:21]}  h4 {[%clk 0:01:24]} 40. Kh2 {[%clk 0:01:17]}  Kf5 {[%clk 0:01:17]} 41. Bd3+ {[%clk 0:01:12]}  Kg5 {[%clk 0:01:17]} 42. b5 {[%clk 0:01:09]}  axb5 {[%clk 0:01:13]} 43. Bxb5 {[%clk 0:01:10]}  Ng4+ {[%clk 0:01:11]} 44. Kg2 {[%clk 0:01:09]}  Kf5 {[%clk 0:01:01]} 45. a6 {[%clk 0:01:06]}  Ba8 {[%clk 0:00:51]} 46. Bd7+ {[%clk 0:01:06]}  Kg5 {[%clk 0:00:51]} 47. Bc8 {[%clk 0:01:05]} 1-0


[Site "https://www.chess.com"]

[Event "Titled Tuesday Blitz June 21 Late 2022"]
[White "Adla, Diego"]
[Black "Le, Tuan Minh"]
[WhiteFideId "100072"]
[BlackFideId "12401153"]
[WhiteElo "2377"]
[BlackElo "2530"]
[Result "0-1"]
[Round "02"]
[TimeControl "180+1"]
[Date "2022.06.21"]
[WhiteClock "0:00:07"]
[BlackClock "0:00:24"]

1. e4 {[%clk 0:02:55]}  c5 {[%clk 0:02:54]} 2. Nf3 {[%clk 0:02:54]}  Nf6 {[%clk 0:02:54]} 3. e5 {[%clk 0:02:53]}  Nd5 {[%clk 0:02:55]} 4. Nc3 {[%clk 0:02:54]}  e6 {[%clk 0:02:55]} 5. Nxd5 {[%clk 0:02:53]}  exd5 {[%clk 0:02:56]} 6. d4 {[%clk 0:02:53]}  Nc6 {[%clk 0:02:57]} 7. dxc5 {[%clk 0:02:44]}  Bxc5 {[%clk 0:02:57]} 8. Bd3 {[%clk 0:02:44]}  d6 {[%clk 0:02:56]} 9. exd6 {[%clk 0:02:44]}  O-O {[%clk 0:02:57]} 10. O-O {[%clk 0:02:43]}  Qxd6 {[%clk 0:02:58]} 11. Re1 {[%clk 0:01:42]}  h6 {[%clk 0:01:55]} 12. Be3 {[%clk 0:01:40]}  d4 {[%clk 0:01:51]} 13. Bd2 {[%clk 0:01:40]}  Bb6 {[%clk 0:01:49]} 14. h3 {[%clk 0:01:37]}  Bd7 {[%clk 0:01:42]} 15. Qb1 {[%clk 0:01:05]}  Rfe8 {[%clk 0:01:38]} 16. b4 {[%clk 0:01:05]}  Bc7 {[%clk 0:01:30]} 17. Kh1 {[%clk 0:00:56]}  Qf6 {[%clk 0:01:21]} 18. Be4 {[%clk 0:00:42]}  Bxh3 {[%clk 0:01:16]} 19. Qb3 {[%clk 0:00:34]}  Be6 {[%clk 0:01:15]} 20. Qd3 {[%clk 0:00:34]}  Rad8 {[%clk 0:00:54]} 21. Kg1 {[%clk 0:00:34]}  Bc8 {[%clk 0:00:45]} 22. Re2 {[%clk 0:00:32]}  Ne5 {[%clk 0:00:41]} 23. Nxe5 {[%clk 0:00:32]}  Rxe5 {[%clk 0:00:40]} 24. f4 {[%clk 0:00:25]}  Re7 {[%clk 0:00:38]} 25. Rf1 {[%clk 0:00:21]}  Rde8 {[%clk 0:00:38]} 26. Bf3 {[%clk 0:00:21]}  Bf5 {[%clk 0:00:35]} 27. Rxe7 {[%clk 0:00:17]}  Rxe7 {[%clk 0:00:36]} 28. Qb3 {[%clk 0:00:17]}  d3 {[%clk 0:00:36]} 29. c4 {[%clk 0:00:16]}  Qd4+ {[%clk 0:00:35]} 30. Kh1 {[%clk 0:00:15]}  Bxf4 {[%clk 0:00:25]} 31. Bc3 {[%clk 0:00:13]}  Qd6 {[%clk 0:00:24]} 32. c5 {[%clk 0:00:13]}  Qg6 {[%clk 0:00:24]} 33. Qc4 {[%clk 0:00:07]}  Qg3 {[%clk 0:00:24]} 0-1


[Site "https://www.chess.com"]

[Event "Titled Tuesday Blitz June 21 Late 2022"]
[White "Aksu, Vedat Ali"]
[Black "Ladan, Nicholas"]
[WhiteFideId "6304320"]
[BlackFideId "30918855"]
[WhiteElo "2301"]
[BlackElo "2167"]
[Result "0-1"]
[Round "02"]
[TimeControl "180+1"]
[Date "2022.06.22"]
[WhiteClock "0:00:13"]
[BlackClock "0:01:10"]

1. Nf3 {[%clk 0:03:00]}  d5 {[%clk 0:02:59]} 2. e3 {[%clk 0:03:00]}  c5 {[%clk 0:02:58]} 3. c4 {[%clk 0:03:00]}  d4 {[%clk 0:02:57]} 4. b4 {[%clk 0:03:00]}  cxb4 {[%clk 0:02:50]} 5. Nxd4 {[%clk 0:03:00]}  e5 {[%clk 0:02:48]} 6. Nf3 {[%clk 0:02:59]}  Nc6 {[%clk 0:02:49]} 7. Bb2 {[%clk 0:02:58]}  Bd6 {[%clk 0:02:48]} 8. Qc2 {[%clk 0:02:59]}  Nf6 {[%clk 0:02:46]} 9. d3 {[%clk 0:02:58]}  O-O {[%clk 0:02:46]} 10. Nbd2 {[%clk 0:02:59]}  Bf5 {[%clk 0:02:45]} 11. Ne4 {[%clk 0:02:57]}  Nxe4 {[%clk 0:02:43]} 12. dxe4 {[%clk 0:02:57]}  Be6 {[%clk 0:02:43]} 13. O-O-O {[%clk 0:02:52]}  Qc7 {[%clk 0:02:40]} 14. Kb1 {[%clk 0:02:46]}  a5 {[%clk 0:02:38]} 15. Ng5 {[%clk 0:02:43]}  Bc8 {[%clk 0:02:26]} 16. f4 {[%clk 0:02:41]}  a4 {[%clk 0:02:20]} 17. c5 {[%clk 0:02:38]}  Be7 {[%clk 0:02:16]} 18. h4 {[%clk 0:02:34]}  b3 {[%clk 0:02:08]} 19. axb3 {[%clk 0:02:33]}  axb3 {[%clk 0:02:05]} 20. Qxb3 {[%clk 0:02:32]}  Bxc5 {[%clk 0:01:55]} 21. Bc4 {[%clk 0:02:31]}  Na5 {[%clk 0:01:51]} 22. Bxf7+ {[%clk 0:01:07]}  Qxf7 {[%clk 0:01:39]} 23. Qxf7+ {[%clk 0:00:48]}  Rxf7 {[%clk 0:01:39]} 24. Nxf7 {[%clk 0:00:48]}  Kxf7 {[%clk 0:01:39]} 25. Bxe5 {[%clk 0:00:45]}  Nc4 {[%clk 0:01:27]} 26. Bd4 {[%clk 0:00:31]}  Be7 {[%clk 0:01:15]} 27. f5 {[%clk 0:00:24]}  b5 {[%clk 0:01:11]} 28. g4 {[%clk 0:00:24]}  Bb7 {[%clk 0:01:11]} 29. Bc3 {[%clk 0:00:13]}  Bxe4+ {[%clk 0:01:10]} 0-1


[Site "https://www.chess.com"]

[Event "Titled Tuesday Blitz June 21 Late 2022"]
[White "Al-Tarboush, Ward"]
[Black "Romero Ruscalleda, Josep"]
[WhiteFideId "7601450"]
[BlackFideId "2231859"]
[WhiteElo "2249"]
[BlackElo "2377"]
[Result "1-0"]
[Round "02"]
[TimeControl "180+1"]
[Date "2022.06.22"]
[WhiteClock "0:02:25"]
[BlackClock "0:00:54"]

1. e4 {[%clk 0:03:00]}  g6 {[%clk 0:03:00]} 2. Ne2 {[%clk 0:03:01]}  Bg7 {[%clk 0:03:01]} 3. d3 {[%clk 0:03:00]}  d6 {[%clk 0:03:01]} 4. Nd2 {[%clk 0:03:01]}  e5 {[%clk 0:02:59]} 5. g3 {[%clk 0:03:01]}  Nf6 {[%clk 0:02:58]} 6. Bg2 {[%clk 0:03:01]}  O-O {[%clk 0:02:57]} 7. O-O {[%clk 0:03:00]}  Nc6 {[%clk 0:02:57]} 8. c3 {[%clk 0:02:59]}  Bg4 {[%clk 0:02:51]} 9. f3 {[%clk 0:02:59]}  Bd7 {[%clk 0:02:48]} 10. c4 {[%clk 0:02:58]}  Qc8 {[%clk 0:02:45]} 11. f4 {[%clk 0:02:56]}  Bh3 {[%clk 0:02:35]} 12. f5 {[%clk 0:02:56]}  Bxg2 {[%clk 0:02:35]} 13. Kxg2 {[%clk 0:02:56]}  Nd4 {[%clk 0:02:25]} 14. Nxd4 {[%clk 0:02:55]}  exd4 {[%clk 0:02:25]} 15. Nf3 {[%clk 0:02:53]}  c5 {[%clk 0:02:14]} 16. Bf4 {[%clk 0:02:53]}  Qd7 {[%clk 0:02:05]} 17. Qd2 {[%clk 0:02:49]}  Rae8 {[%clk 0:01:53]} 18. Rae1 {[%clk 0:02:48]}  gxf5 {[%clk 0:01:45]} 19. exf5 {[%clk 0:02:48]}  Rxe1 {[%clk 0:01:44]} 20. Rxe1 {[%clk 0:02:48]}  Qxf5 {[%clk 0:01:40]} 21. Bxd6 {[%clk 0:02:45]}  Rd8 {[%clk 0:01:40]} 22. Re5 {[%clk 0:02:43]}  Qd7 {[%clk 0:01:28]} 23. Bxc5 {[%clk 0:02:40]}  Ng4 {[%clk 0:01:28]} 24. Rg5 {[%clk 0:02:40]}  Ne3+ {[%clk 0:01:25]} 25. Kg1 {[%clk 0:02:40]}  Qh3 {[%clk 0:01:21]} 26. Qf2 {[%clk 0:02:31]}  Ng4 {[%clk 0:01:15]} 27. Qg2 {[%clk 0:02:27]}  Qxg2+ {[%clk 0:01:09]} 28. Kxg2 {[%clk 0:02:28]}  Ne3+ {[%clk 0:01:08]} 29. Kf2 {[%clk 0:02:28]}  h6 {[%clk 0:01:05]} 30. Rxg7+ {[%clk 0:02:27]}  Kxg7 {[%clk 0:01:05]} 31. Bxd4+ {[%clk 0:02:28]}  f6 {[%clk 0:00:57]} 32. Kxe3 {[%clk 0:02:26]}  b6 {[%clk 0:00:56]} 33. Bc3 {[%clk 0:02:26]}  Kf7 {[%clk 0:00:54]} 34. d4 {[%clk 0:02:26]}  Ke6 {[%clk 0:00:53]} 35. d5+ {[%clk 0:02:26]}  Kf5 {[%clk 0:00:54]} 36. Nd4+ {[%clk 0:02:26]}  Kg6 {[%clk 0:00:53]} 37. Ne6 {[%clk 0:02:26]}  Rd7 {[%clk 0:00:54]} 38. Nf8+ {[%clk 0:02:25]} 1-0


[Site "https://www.chess.com"]

[Event "Titled Tuesday Blitz June 21 Late 2022"]
[White "Bernat, David"]
[Black "De La Colina, Nicolas"]
[WhiteFideId "2099225"]
[BlackFideId "30946921"]
[WhiteElo "2300"]
[BlackElo "2046"]
[Result "0-1"]
[Round "02"]
[TimeControl "180+1"]
[Date "2022.06.22"]
[WhiteClock "0:01:13"]
[BlackClock "0:00:59"]

1. c4 {[%clk 0:03:00]}  g6 {[%clk 0:02:58]} 2. Nc3 {[%clk 0:03:01]}  Bg7 {[%clk 0:02:59]} 3. g3 {[%clk 0:03:01]}  d6 {[%clk 0:02:55]} 4. Bg2 {[%clk 0:03:02]}  f5 {[%clk 0:02:52]} 5. e4 {[%clk 0:03:00]}  Nc6 {[%clk 0:02:51]} 6. Nge2 {[%clk 0:02:59]}  Nf6 {[%clk 0:02:50]} 7. O-O {[%clk 0:02:57]}  O-O {[%clk 0:02:49]} 8. d3 {[%clk 0:02:58]}  e5 {[%clk 0:02:49]} 9. h3 {[%clk 0:02:54]}  Be6 {[%clk 0:02:44]} 10. Be3 {[%clk 0:02:46]}  Qd7 {[%clk 0:02:39]} 11. Kh2 {[%clk 0:02:38]}  Kh8 {[%clk 0:02:10]} 12. Qd2 {[%clk 0:02:36]}  Rae8 {[%clk 0:02:01]} 13. b3 {[%clk 0:02:35]}  a6 {[%clk 0:02:00]} 14. Rad1 {[%clk 0:02:34]}  Nh5 {[%clk 0:01:58]} 15. exf5 {[%clk 0:02:24]}  gxf5 {[%clk 0:01:54]} 16. d4 {[%clk 0:02:20]}  f4 {[%clk 0:01:39]} 17. gxf4 {[%clk 0:01:56]}  exf4 {[%clk 0:01:26]} 18. Nxf4 {[%clk 0:01:48]}  Nxf4 {[%clk 0:01:25]} 19. Bxf4 {[%clk 0:01:47]}  Nxd4 {[%clk 0:01:23]} 20. Bh6 {[%clk 0:01:13]}  Nf3+ {[%clk 0:00:57]} 21. Bxf3 {[%clk 0:01:13]}  Rxf3 {[%clk 0:00:58]} 22. Bxg7+ {[%clk 0:01:13]}  Qxg7 {[%clk 0:00:59]} 0-1


[Site "https://www.chess.com"]

[Event "Titled Tuesday Blitz June 21 Late 2022"]
[White "Bintang, Rasyid A. Hidayat"]
[Black "Melikyan, Gnel"]
[WhiteFideId "7105355"]
[BlackFideId "54109990"]
[WhiteElo "2407"]
[BlackElo "1772"]
[Result "0-1"]
[Round "02"]
[TimeControl "180+1"]
[Date "2022.06.22"]
[WhiteClock "0:00:30"]
[BlackClock "0:00:14"]

1. d4 {[%clk 0:03:00]}  Nf6 {[%clk 0:02:59]} 2. Bf4 {[%clk 0:03:01]}  d5 {[%clk 0:02:58]} 3. e3 {[%clk 0:03:01]}  c6 {[%clk 0:02:58]} 4. Nd2 {[%clk 0:03:00]}  Bf5 {[%clk 0:02:58]} 5. c4 {[%clk 0:03:00]}  e6 {[%clk 0:02:58]} 6. Qb3 {[%clk 0:02:59]}  Qc8 {[%clk 0:02:54]} 7. Rc1 {[%clk 0:02:58]}  Nbd7 {[%clk 0:02:53]} 8. Ngf3 {[%clk 0:02:57]}  Be7 {[%clk 0:02:53]} 9. h3 {[%clk 0:02:56]}  h6 {[%clk 0:02:52]} 10. Be2 {[%clk 0:02:55]}  O-O {[%clk 0:02:52]} 11. O-O {[%clk 0:02:54]}  Re8 {[%clk 0:02:45]} 12. Ne5 {[%clk 0:02:38]}  Nxe5 {[%clk 0:02:44]} 13. Bxe5 {[%clk 0:02:39]}  Nd7 {[%clk 0:02:42]} 14. Bg3 {[%clk 0:02:38]}  Bf6 {[%clk 0:02:36]} 15. Bd3 {[%clk 0:02:33]}  Bxd3 {[%clk 0:02:34]} 16. Qxd3 {[%clk 0:02:34]}  Qd8 {[%clk 0:02:31]} 17. e4 {[%clk 0:02:30]}  dxc4 {[%clk 0:02:16]} 18. Nxc4 {[%clk 0:02:30]}  Nc5 {[%clk 0:02:15]} 19. Qa3 {[%clk 0:02:16]}  Nxe4 {[%clk 0:02:14]} 20. Be5 {[%clk 0:02:08]}  Qe7 {[%clk 0:01:55]} 21. Rfe1 {[%clk 0:02:02]}  Qxa3 {[%clk 0:01:53]} 22. bxa3 {[%clk 0:02:01]}  Bxe5 {[%clk 0:01:32]} 23. dxe5 {[%clk 0:02:00]}  Nc5 {[%clk 0:01:31]} 24. Na5 {[%clk 0:01:59]}  b6 {[%clk 0:01:22]} 25. Red1 {[%clk 0:01:55]}  Rac8 {[%clk 0:01:17]} 26. Nc4 {[%clk 0:01:54]}  Red8 {[%clk 0:01:14]} 27. Nd6 {[%clk 0:01:54]}  Rc7 {[%clk 0:01:13]} 28. Rd4 {[%clk 0:01:42]}  Nb7 {[%clk 0:01:05]} 29. Rcd1 {[%clk 0:01:39]}  c5 {[%clk 0:01:05]} 30. R4d2 {[%clk 0:01:39]}  Nxd6 {[%clk 0:01:05]} 31. exd6 {[%clk 0:01:37]}  Rc6 {[%clk 0:01:05]} 32. f4 {[%clk 0:01:33]}  f6 {[%clk 0:01:05]} 33. Kf2 {[%clk 0:01:33]}  Kf7 {[%clk 0:01:04]} 34. Kf3 {[%clk 0:01:33]}  c4 {[%clk 0:01:04]} 35. g4 {[%clk 0:01:17]}  g6 {[%clk 0:01:00]} 36. h4 {[%clk 0:01:17]}  b5 {[%clk 0:00:58]} 37. Ke4 {[%clk 0:01:08]}  c3 {[%clk 0:00:38]} 38. Rc2 {[%clk 0:01:07]}  a5 {[%clk 0:00:38]} 39. Rd3 {[%clk 0:00:56]}  Rc4+ {[%clk 0:00:31]} 40. Kf3 {[%clk 0:00:55]}  b4 {[%clk 0:00:31]} 41. axb4 {[%clk 0:00:50]}  axb4 {[%clk 0:00:32]} 42. a3 {[%clk 0:00:50]}  bxa3 {[%clk 0:00:19]} 43. Rcxc3 {[%clk 0:00:50]}  Rxc3 {[%clk 0:00:19]} 44. Rxc3 {[%clk 0:00:51]}  Ra8 {[%clk 0:00:15]} 45. d7 {[%clk 0:00:51]}  a2 {[%clk 0:00:14]} 46. d8=Q {[%clk 0:00:38]}  Rxd8 {[%clk 0:00:13]} 47. Ra3 {[%clk 0:00:38]}  Rd3+ {[%clk 0:00:13]} 48. Rxd3 {[%clk 0:00:35]}  a1=Q {[%clk 0:00:14]} 49. Rd7+ {[%clk 0:00:36]}  Ke8 {[%clk 0:00:14]} 50. Rd3 {[%clk 0:00:35]}  Qf1+ {[%clk 0:00:13]} 51. Ke3 {[%clk 0:00:34]}  Qe1+ {[%clk 0:00:12]} 52. Kd4 {[%clk 0:00:32]}  Qxh4 {[%clk 0:00:13]} 53. Re3 {[%clk 0:00:32]}  Qxg4 {[%clk 0:00:13]} 54. Re4 {[%clk 0:00:31]}  e5+ {[%clk 0:00:12]} 55. fxe5 {[%clk 0:00:31]}  Qxe4+ {[%clk 0:00:12]} 56. Kxe4 {[%clk 0:00:30]}  f5+ {[%clk 0:00:13]} 57. Kf4 {[%clk 0:00:30]}  Ke7 {[%clk 0:00:14]} 0-1


[Site "https://www.chess.com"]

[Event "Titled Tuesday Blitz June 21 Late 2022"]
[White "Bluebaum, Matthias"]
[Black "Hnydiuk, Aleksander"]
[WhiteFideId "24651516"]
[BlackFideId "1109057"]
[WhiteElo "2556"]
[BlackElo "2374"]
[Result "1-0"]
[Round "02"]
[TimeControl "180+1"]
[Date "2022.06.21"]
[WhiteClock "0:01:19"]
[BlackClock "0:01:50"]

1. d4 {[%clk 0:03:00]}  Nf6 {[%clk 0:02:59]} 2. c4 {[%clk 0:03:00]}  g6 {[%clk 0:02:59]} 3. Nc3 {[%clk 0:03:00]}  d5 {[%clk 0:02:58]} 4. cxd5 {[%clk 0:02:59]}  Nxd5 {[%clk 0:02:59]} 5. e4 {[%clk 0:03:00]}  Nxc3 {[%clk 0:03:00]} 6. bxc3 {[%clk 0:03:00]}  Bg7 {[%clk 0:03:00]} 7. Nf3 {[%clk 0:03:01]}  c5 {[%clk 0:03:00]} 8. Bb5+ {[%clk 0:03:02]}  Nd7 {[%clk 0:02:53]} 9. O-O {[%clk 0:03:02]}  O-O {[%clk 0:02:53]} 10. h3 {[%clk 0:02:50]}  b6 {[%clk 0:02:53]} 11. Qe2 {[%clk 0:02:43]}  Bb7 {[%clk 0:02:52]} 12. Bg5 {[%clk 0:02:41]}  Nf6 {[%clk 0:02:43]} 13. d5 {[%clk 0:02:24]}  h6 {[%clk 0:02:34]} 14. Bh4 {[%clk 0:02:23]}  Nh5 {[%clk 0:02:29]} 15. Qe3 {[%clk 0:02:11]}  Qc7 {[%clk 0:02:24]} 16. Rad1 {[%clk 0:01:50]}  g5 {[%clk 0:02:18]} 17. Nxg5 {[%clk 0:01:50]}  hxg5 {[%clk 0:02:19]} 18. Qxg5 {[%clk 0:01:50]}  Nf4 {[%clk 0:02:08]} 19. Bg3 {[%clk 0:01:43]}  e5 {[%clk 0:02:07]} 20. dxe6 {[%clk 0:01:31]}  fxe6 {[%clk 0:01:50]} 21. Rd7 {[%clk 0:01:19]}  Ne2+ {[%clk 0:01:50]} 22. Kh2 {[%clk 0:01:19]} 1-0


[Site "https://www.chess.com"]

[Event "Titled Tuesday Blitz June 21 Late 2022"]
[White "Boyer, Mahel"]
[Black "Lopez Gracia, Fernando"]
[WhiteFideId "45102422"]
[BlackFideId "2207184"]
[WhiteElo "2400"]
[BlackElo "2481"]
[Result "1-0"]
[Round "02"]
[TimeControl "180+1"]
[Date "2022.06.22"]
[WhiteClock "0:00:01"]
[BlackClock "0:00:08"]

1. e4 {[%clk 0:03:00]}  e5 {[%clk 0:02:59]} 2. Nf3 {[%clk 0:02:59]}  Nc6 {[%clk 0:02:59]} 3. d4 {[%clk 0:02:59]}  exd4 {[%clk 0:02:58]} 4. Nxd4 {[%clk 0:02:59]}  Nf6 {[%clk 0:02:57]} 5. Nc3 {[%clk 0:03:00]}  Bb4 {[%clk 0:02:57]} 6. Nxc6 {[%clk 0:02:49]}  bxc6 {[%clk 0:02:58]} 7. Bd3 {[%clk 0:02:44]}  d5 {[%clk 0:02:58]} 8. Bd2 {[%clk 0:02:39]}  O-O {[%clk 0:02:57]} 9. O-O {[%clk 0:02:38]}  Bxc3 {[%clk 0:02:38]} 10. Bxc3 {[%clk 0:02:38]}  Nxe4 {[%clk 0:02:38]} 11. Bxe4 {[%clk 0:02:34]}  dxe4 {[%clk 0:02:39]} 12. Qh5 {[%clk 0:02:30]}  h6 {[%clk 0:02:24]} 13. Rfe1 {[%clk 0:02:29]}  f5 {[%clk 0:02:18]} 14. Re3 {[%clk 0:02:12]}  Qg5 {[%clk 0:02:15]} 15. Rg3 {[%clk 0:01:58]}  Qxh5 {[%clk 0:01:53]} 16. Rxg7+ {[%clk 0:01:59]}  Kh8 {[%clk 0:01:53]} 17. Rf7+ {[%clk 0:00:42]}  Kg8 {[%clk 0:01:50]} 18. Rg7+ {[%clk 0:00:43]}  Kh8 {[%clk 0:01:51]} 19. Rg5+ {[%clk 0:00:44]}  Kh7 {[%clk 0:01:50]} 20. Rxh5 {[%clk 0:00:44]}  Be6 {[%clk 0:01:48]} 21. Be5 {[%clk 0:00:37]}  Kg6 {[%clk 0:01:45]} 22. Rh4 {[%clk 0:00:33]}  Rad8 {[%clk 0:01:40]} 23. Bxc7 {[%clk 0:00:33]}  Rd2 {[%clk 0:01:40]} 24. Rxh6+ {[%clk 0:00:33]}  Kxh6 {[%clk 0:01:38]} 25. Bf4+ {[%clk 0:00:32]}  Kg6 {[%clk 0:01:39]} 26. Bxd2 {[%clk 0:00:33]}  Rd8 {[%clk 0:01:40]} 27. Be3 {[%clk 0:00:32]}  Kh5 {[%clk 0:01:33]} 28. h3 {[%clk 0:00:26]}  a5 {[%clk 0:01:23]} 29. a4 {[%clk 0:00:21]}  Rb8 {[%clk 0:01:23]} 30. b4 {[%clk 0:00:21]}  Rxb4 {[%clk 0:01:22]} 31. Bd2 {[%clk 0:00:20]}  Rc4 {[%clk 0:01:19]} 32. Bxa5 {[%clk 0:00:21]}  Rxc2 {[%clk 0:01:19]} 33. Bb6 {[%clk 0:00:19]}  Ra2 {[%clk 0:01:11]} 34. Rxa2 {[%clk 0:00:18]}  Bxa2 {[%clk 0:01:12]} 35. Be3 {[%clk 0:00:10]}  Bc4 {[%clk 0:01:10]} 36. Kh2 {[%clk 0:00:09]}  Bd3 {[%clk 0:01:10]} 37. Kg3 {[%clk 0:00:09]}  Bf1 {[%clk 0:01:09]} 38. a5 {[%clk 0:00:09]}  Kg6 {[%clk 0:00:27]} 39. Kf4 {[%clk 0:00:10]}  Kf6 {[%clk 0:00:24]} 40. Bd4+ {[%clk 0:00:08]}  Ke6 {[%clk 0:00:20]} 41. h4 {[%clk 0:00:07]}  Bxg2 {[%clk 0:00:17]} 42. a6 {[%clk 0:00:05]}  Bf3 {[%clk 0:00:07]} 43. a7 {[%clk 0:00:02]}  c5 {[%clk 0:00:08]} 44. Be3 {[%clk 0:00:01]} 1-0


[Site "https://www.chess.com"]